Cogmind - Beta 9 @@@ ROGUE MODE // 2019.10.28 @ 22:31:44 Player: MrPainting Result: Self-destructed Performance ------------- Evolutions (2) 1000 Regions Visited (4) 800 Robots Destroyed (61) 305 Value Destroyed (1126) 1126 Prototype IDs (3) 60 Alien Tech Used (0) 0 Bonus (0) 0 TOTAL SCORE: 3291 Bonus ------- None Cogmind --------- Core Integrity 550/550 Matter 270/300 Energy 250/250 System Corruption 0% Temperature Cool (0) Location -8/Materials Parts ------- Power (1) Ion Engine Propulsion (3) Aluminum Leg Aluminum Leg Aluminum Leg Utility (3) Large Storage Unit Improved Power Shielding Hacking Suite Weapon (4) Beam Rifle Beam Rifle Beamcaster Inventory (10) Improved Treads High-capacity Storage Unit High-capacity Matter Pod (200) Structural Scanner Sensor Array Signal Interpreter Armor Integrity Analyzer Flak Cannon Flak Cannon Peak State ------------ Power Ion Engine Propulsion Aluminum Leg Aluminum Leg Aluminum Leg Utility Large Storage Unit Improved Power Shielding Hacking Suite Weapon Beam Rifle Beam Rifle Beamcaster Inventory Improved Treads High-capacity Storage Unit High-capacity Matter Pod Structural Scanner Sensor Array Signal Interpreter Armor Integrity Analyzer Flak Cannon [Rating: 21] Favorites ----------- Power Ion Engine Engine Ion Engine Power Core Light Nuclear Core Propulsion Light Treads Treads Light Treads Leg Aluminum Leg Wheel Armored Wheel Utility Hacking Suite Device Heat Sink Storage Large Storage Unit Processor Improved Targeting Computer Hackware Hacking Suite Protection Improved Power Shielding Weapon Flak Cannon Energy Gun Beam Rifle Energy Cannon Advanced Beam Cannon Ballistic Gun Assault Rifle Ballistic Cannon Flak Cannon Build | -11 -10 -9 -9 -8 ------- Run | Scr Mat Mat Min Mat Slots Evolved 4 | . . 2 . 2 Power . | . . . . . Propulsion 1 | . . 1 . . Utility 1 | . . 1 . . Weapon 2 | . . . . 2 Parts Attached 56 | 8 16 22 7 3 Power 5 | 1 3 . 1 . Engine 3 | 1 1 . 1 . Core 2 | . 2 . . . Reactor . | . . . . . Propulsion 20 | 4 6 6 4 . Treads 10 | . 4 5 1 . Leg 7 | 2 2 1 2 . Wheel 3 | 2 . . 1 . Hover . | . . . . . Flight . | . . . . . Utility 12 | 1 5 5 1 . Device 3 | . 2 1 . . Storage 4 | 1 1 1 1 . Processor 3 | . 2 1 . . Hackware 1 | . . 1 . . Protection 1 | . . 1 . . Artifact . | . . . . . Weapon 19 | 2 2 11 1 3 Energy Gun 10 | 1 . 6 . 3 Energy Cannon 2 | . 1 1 . . Ballistic Gun 3 | 1 1 1 . . Ballistic Cannon 4 | . . 3 1 . Launcher . | . . . . . Special Weapon . | . . . . . Impact Weapon . | . . . . . Slashing Weapon . | . . . . . Piercing Weapon . | . . . . . Special Melee Weapon . | . . . . . Unidentified Prototypes 3 | . 1 2 . . Parts Lost 10 | . 2 8 . . Power 1 | . . 1 . . Propulsion 4 | . 1 3 . . Utility 1 | . . 1 . . Weapon 4 | . 1 3 . . Highest Loss Streak 5 | . 1 5 . . Average Slot Usage (%) 95 | . 96 91 98 90 Engine 5 | . 3 . 11 9 Core 5 | . 10 8 . . Treads 14 | . 9 26 6 . Leg 11 | . 15 1 18 27 Wheel 3 | . 2 . 6 . Device 5 | . 10 9 . . Storage 9 | . 5 11 11 9 Processor 4 | . 11 5 . . Hackware 6 | . . 5 11 9 Protection 5 | . . 1 11 9 Energy Gun 6 | . 3 13 . 27 Energy Cannon 1 | . 3 1 . . Ballistic Gun 4 | . 19 1 . . Ballistic Cannon 11 | . . 5 22 . Naked Turns . | . . . . . Heaviest Build 51 | 13 28 50 51 34 Greatest Support 60 | 32 43 60 30 30 Greatest Overweight (x) 14 | . . 14 5 1 Average Overweight (x) . | . . . 1 1 Largest Inventory Capacity 12 | 6 10 12 12 10 Average Capacity 9 | 5 6 11 10 10 Most Carried 12 | 6 9 12 11 10 Average Carried 9 | 3 4 10 9 8 Final Capacity 10 | . . . . 10 Final Carried 9 | . . . . 9 Class Distribution -------------------- 61% | Mutant 37% | Scavenger-Mutant Dominant Class ---------------- Mutant | -10/Materials Scavenger-Mutant | -9/Materials Mutant | -9/Mines Scavenger-Tank | -8/Materials Resources | -11 -10 -9 -9 -8 ----------- Run | Scr Mat Mat Min Mat Matter Collected 1809 | 243 314 810 442 . Remotely . | . . . . . Salvage Created 1924 | . 541 1238 145 . Parts 118 | . 30 77 11 . Haulers Intercepted 5 | . 1 4 . . Recyclers Shooed 5 | . 1 2 2 . Parts Field Recycled . | . . . . . Retrieved Matter . | . . . . . Parts Self-Destructed . | . . . . . Prevented . | . . . . . Kills | -11 -10 -9 -9 -8 ------- Run | Scr Mat Mat Min Mat Combat Hostiles Destroyed 34 | . 7 22 5 . Guns 14 | . 4 10 . . Cannons 19 | . 3 11 5 . Classes Destroyed 12 | . 4 6 2 . Worker 3 | . . 2 1 . Builder 5 | . . 5 . . Tunneler 1 | . . . 1 . Hauler 5 | . 1 4 . . Recycler 6 | . 2 3 1 . Operator 2 | . . 2 . . Watcher 5 | . 1 4 . . Swarmer 12 | . . 9 3 . Grunt 19 | . 7 11 1 . Brawler 1 | . . 1 . . Duelist 1 | . . . 1 . Sentry 1 | . . 1 . . Best Kill Streak 9 | . 5 9 4 . Combat Bots Only 6 | . 3 6 3 . Max Kills in Single Turn 2 | . 1 2 1 . Gunslinging . | . . . . . Exploded . | . . . . . Melee . | . . . . . Uniques/NPCs Destroyed . | . . . . . Combat | -11 -10 -9 -9 -8 -------- Run | Scr Mat Mat Min Mat Damage Taken 1916 | . 296 1244 376 . Core 324 | . 34 243 47 . Absorbed by Shields . | . . . . . Core Remaining (%) 71 | 100 86 . 27 . Volleys Fired 150 | . 35 95 20 . Largest 2 | . 2 2 2 . Hottest 112 | . 88 112 88 . Shots Fired 299 | . 69 190 40 . Gun 169 | . 51 118 . . Cannon 130 | . 18 72 40 . Launcher . | . . . . . Special . | . . . . . Kinetic 164 | . 47 77 40 . Thermal 131 | . 18 113 . . Explosive . | . . . . . Electromagnetic 4 | . 4 . . . Robot Hit Streak 12 | . 6 12 9 . Robot Miss Streak 16 | . 2 12 16 . Penetration Max . | . . . . . Secondary Targets 2 | . 1 1 . . Max Gunslinging Chain 1 | . 1 1 . . Shots Hit Robots 216 | . 43 139 34 . Core Hits 114 | . 20 72 22 . Critical Hits 4 | . 3 1 . . Critical Kills 3 | . 2 1 . . Critical Parts Destroyed 1 | . 1 . . . Melee Attacks . | . . . . . Impact . | . . . . . Slashing . | . . . . . Piercing . | . . . . . Sneak Attacks . | . . . . . Combat Hostiles . | . . . . . Follow-up Attacks . | . . . . . Damage Inflicted 2852 | . 523 1909 420 . Guns 1389 | . 318 1071 . . Cannons 1463 | . 205 838 420 . Explosions . | . . . . . Melee . | . . . . . Ramming . | . . . . . Kinetic 1569 | . 276 873 420 . Thermal 1241 | . 205 1036 . . Explosive . | . . . . . Electromagnetic 42 | . 42 . . . Impact . | . . . . . Slashing . | . . . . . Piercing . | . . . . . Highest Corruption . | . . . . . Average Corruption . | . . . . . Corruption Purged . | . . . . . Overload Shots . | . . . . . Overflow Damage . | . . . . . Projectiles . | . . . . . Explosions . | . . . . . Melee . | . . . . . Knockbacks 35 | . . 25 10 . Impact . | . . . . . Kinetic 33 | . . 24 9 . Secondary 2 | . . 1 1 . Self-Inflicted Damage . | . . . . . Shots . | . . . . . Rammed . | . . . . . Targets Rammed . | . . . . . Kicked . | . . . . . Crushed . | . . . . . Highest Temperature 342 | . 342 194 152 . Average Temperature 66 | . 110 53 46 . Received Heat Transfer 558 | . 165 336 57 . Siege Activations . | . . . . . Robots Corrupted . | . . . . . Combat Hostiles . | . . . . . Parts Fried . | . . . . . Impact Corruptions . | . . . . . Robots Melted 1 | . . 1 . . Combat Hostiles 1 | . . 1 . . Parts Melted 3 | . . 3 . . Heat Transferred 2923 | . 370 2553 . . Parts Sabotaged . | . . . . . Parts Stolen . | . . . . . Parts Stripped . | . . . . . Power Chain Reactions . | . . . . . Missiles Intercepted . | . . . . . Alert | -11 -10 -9 -9 -8 ------- Run | Scr Mat Mat Min Mat Peak Influence 348 | . 137 348 225 1 Average Influence 118 | . 74 193 80 1 Maximum Alert Level 1 | . . 1 1 . Low Security (%) 74 | . . . . . Level 1 25 | . . . . . Level 2 . | . . . . . Level 3 . | . . . . . Level 4 . | . . . . . Level 5 . | . . . . . High Security . | . . . . . Max Security . | . . . . . Squads Dispatched 6 | . 1 4 . 1 Investigation 3 | . 1 2 . . Extermination . | . . . . . Reinforcement 3 | . . 2 . 1 Assault . | . . . . . Garrison . | . . . . . Intercept . | . . . . . Construction Impeded 1 | . . 1 . . Haulers Reinforced . | . . . . . Stealth | -11 -10 -9 -9 -8 --------- Run | Scr Mat Mat Min Mat Distress Signals 3 | . 1 2 . . Communications Jammed . | . . . . . Distress Signals . | . . . . . Times Spotted 52 | . 12 33 7 . Peak Tracking Total 4 | . 3 4 3 1 Tactical Retreats 4 | . 1 2 1 . Traps | -11 -10 -9 -9 -8 ------- Run | Scr Mat Mat Min Mat Traps Triggered 2 | . 1 1 . . Indirectly . | . . . . . Trap Hack Attempts . | . . . . . Triggered . | . . . . . Disarmed . | . . . . . Reprogrammed . | . . . . . Reused . | . . . . . Traps Extracted . | . . . . . Installed . | . . . . . Triggered 1 | . . . 1 . Machines | -11 -10 -9 -9 -8 ---------- Run | Scr Mat Mat Min Mat Machines Disabled . | . . . . . Max in Single Turn . | . . . . . Machines Sabotaged . | . . . . . Garrisons Compromised . | . . . . . Overloaded Fab Kills . | . . . . . Fab Network Shutdowns . | . . . . . Hacking | -11 -10 -9 -9 -8 --------- Run | Scr Mat Mat Min Mat Machines Accessed 4 | . 2 2 . . Terminals 2 | . 1 1 . . Fabricators . | . . . . . Repair Stations . | . . . . . Recycling Units 2 | . 1 1 . . Scanalyzers . | . . . . . Garrison Access . | . . . . . Total Hacks 10 | . 5 5 . . Successful 5 | . 4 1 . . Failed 5 | . 1 4 . . Catastrophic 1 | . . 1 . . Database Lockouts . | . . . . . Manual 2 | . 2 . . . Terminals 6 | . 3 3 . . Fabricators . | . . . . . Repair Stations . | . . . . . Recycling Units 4 | . 2 2 . . Scanalyzers . | . . . . . Garrison Access . | . . . . . Terminal Hacks 2 | . 1 1 . . Alert Level 1 | . . 1 . . Locate Traps 1 | . 1 . . . Fabricator Hacks . | . . . . . Repair Station Hacks . | . . . . . Recycling Unit Hacks 2 | . 2 . . . Report Inventory 1 | . 1 . . . Retrieve Components 1 | . 1 . . . Scanalyzer . | . . . . . Garrison Access Hacks . | . . . . . Unauthorized Hacks 3 | . 3 . . . Terminals 1 | . 1 . . . Botnet 1 | . 1 . . . Fabricators . | . . . . . Repair Stations . | . . . . . Recycling Units . | . . . . . Scanalyzers . | . . . . . Garrison Access . | . . . . . Data Cores Recovered 1 | . . 1 . . Used . | . . . . . Hacking Detections 3 | . 1 2 . . Full Trace Events 2 | . . 2 . . Feedback Events . | . . . . . Feedback Blocked . | . . . . . Robot Schematics Acquired . | . . . . . Robots Built . | . . . . . Matter . | . . . . . Time . | . . . . . Total Robot Build Rating . | . . . . . Part Schematics Acquired . | . . . . . Parts Built . | . . . . . Matter . | . . . . . Time . | . . . . . Total Part Build Rating . | . . . . . Parts Repaired . | . . . . . Time . | . . . . . Parts Recycled . | . . . . . Recycled Matter . | . . . . . Retrieved Matter . | . . . . . Retrieved Components 10 | . 10 . . . Parts Scanalyzed . | . . . . . Part Schematics Acquired . | . . . . . Parts Damaged . | . . . . . Bothacking | -11 -10 -9 -9 -8 ------------ Run | Scr Mat Mat Min Mat Used RIF Installer . | . . . . . Robots Hacked . | . . . . . Non-combat . | . . . . . Combat . | . . . . . Robot Hacks Applied . | . . . . . Relay Couplers Released . | . . . . . Robots Rewired . | . . . . . Allies Hacked . | . . . . . Hacks Repelled . | . . . . . Allies | -11 -10 -9 -9 -8 -------- Run | Scr Mat Mat Min Mat Total Allies . | . . . . . Largest Group . | . . . . . Highest-Rated Group . | . . . . . Highest-Rated Ally . | . . . . . Total Orders . | . . . . . Ally Attacks . | . . . . . Total Damage . | . . . . . Kills . | . . . . . Allies Corrupted . | . . . . . Allies Melted . | . . . . . Intel | -11 -10 -9 -9 -8 ------- Run | Scr Mat Mat Min Mat Robot Analysis Total . | . . . . . Derelict Logs Recovered 1 | . . . 1 . Drone Launches . | . . . . . Drone Recoveries . | . . . . . Exploration | -11 -10 -9 -9 -8 ------------- Run | Scr Mat Mat Min Mat Turns Passed 2989 | 91 549 1123 1189 37 Spaces Moved 1485 | 71 313 437 655 9 Core 21 | 13 . 8 . . Treads 836 | . 72 390 374 . Legs 569 | 35 205 39 281 9 Wheels 59 | 23 36 . . . Hover . | . . . . . Flight . | . . . . . Fastest Speed 50 | 50 100 160 150 150 Average Speed 159 | 100 126 177 170 150 Slowest Speed 750 | 120 160 750 270 150 Overloaded Moves . | . . . . . Propulsion Burnouts . | . . . . . Robots Hopped . | . . . . . Cave-ins Triggered . | . . . . . Exploration Rate (%) 34 | 4 29 39 98 2 Regions Visited 4 Branch Regions 1 Pre-discovered Areas 1 | . . . 1 . Known Exits Taken . | . . . . . Unknown Exits Taken 4 | 1 1 1 1 . Scrap Searched 1 | . . . 1 . Spaces Dug . | . . . . . Terrain Destroyed . | . . . . . Melee . | . . . . . Projectile . | . . . . . AOE . | . . . . . Actions | -11 -10 -9 -9 -8 --------- Run | Scr Mat Mat Min Mat Total 1808 | 89 400 595 691 33 Wait 36 | . 3 16 . 17 Move 1481 | 70 312 436 654 9 Hop . | . . . . . Pick Up 53 | 11 19 16 5 2 Fast Attach 8 | 1 4 1 2 . Attach 26 | 5 4 11 3 3 Detach 1 | . . . 1 . Swap 22 | 2 8 10 2 . Drop 31 | . 15 10 4 2 Fire 150 | . 35 95 20 . Melee . | . . . . . Ram . | . . . . . Kick . | . . . . . Crush . | . . . . . Escape Stasis . | . . . . . Rewire . | . . . . . Trap . | . . . . . Miscellaneous . | . . . . . Route ------- -11/Scrapyard -10/Materials -9/Materials (discovered 2 exits: [*Mat] / [*Min]) -9/Mines (discovered 2 exits: [*Mat x2]) -8/Materials History --------- Turn | Location | Event 2 | -11/Scrapyard | Discovered new exit (range 16) 92 | -11/Scrapyard | Entered Materials 318 | -10/Materials | Build established: Mutant 633 | -10/Materials | Discovered new exit (range 4) 641 | -10/Materials | Entered another Materials area 641 | -9/Materials | Evolved 2 slots: Propulsion x1, Utility x1 1144 | -9/Materials | Build established: Scavenger-Mutant 1275 | -9/Materials | Discovered new exit (range 16) 1579 | -9/Materials | Core integrity fell below 50% 1590 | -9/Materials | Lost 5 parts (1p3n1u) 1728 | -9/Materials | Discovered new exit (range 12) 1764 | -9/Materials | Entered Mines 1789 | -9/Mines | Joined a pair of Derelicts in attacking an 0b10 outpost 1830 | -9/Mines | Build established: Mutant 1902 | -9/Mines | Learned location of Zion (-6) 1936 | -9/Mines | Discovered new exit (range 6) 2838 | -9/Mines | Build established: Scavenger-Mutant 2930 | -9/Mines | Discovered new exit (range 7) 2953 | -9/Mines | Entered Materials 2953 | -8/Materials | Evolved 2 slots: Weapon x2 2990 | -8/Materials | Self-destructed Last Messages --------------- 02551_ Acquired Aluminum Leg. 02851_ K-01 Serf knocked back. 02851_ K-01 Serf destroyed. 02857_ Acquired 11 matter. 02867_ Acquired 112 matter. 02879_ Acquired 14 matter. 02884_ Acquired 20 matter. 02903_ Acquired 67 matter. 02905_ Acquired 8 matter. 02908_ Dropped Beam Rifle. 02911_ Acquired Beamcaster. 02930_ EXIT=FOUND PARAMETERS=WEAPON_2 LOCATION=UNKNOWN GOAL=ESCAPE 02953_ Dropped Flak Cannon. 02959_ Acquired Flak Cannon. 02974_ O-24 Administrator: "IFF HANDSHAKE FAILED. SECURING TERMINAL." 02975_ ALERT: Hostiles spotted, dispatching reinforcements to Terminal M012. Map ----- +----------------------------------------------------+ | ?????????????????????????????????????????????????? | | ?????????????????????????????????????????????????? | | ?????????????????????????????????????????????????? | | ?????????????????????????????????????????????????? | | ?????????????????????????????????????????????????? | | ?????????????????????????????????????????????????? | | ?????????????????????????????????????????????????? | | ?????????????????????????????????????????????????? | | ?????????????????????????????????????????????????? | | ?????????????????????????????????????????????????? | | ?????????????????????????????????????????????????? | | ???????????????????????????????####??????????????? | | ??????????????????????????????# ?????????????? | | ??????????????????????????????# ??????????????? | | ??????????????????????????????# ??????????????? | | ??????????????????????????????# """ ???????????? | | ??????????????????????????????# """????????????? | | ??????????????????????????????# """????????????? | | ??????????????????????????????# ?????????????? | | ??????????????????????????????# ??????????????? | | ??????????????????????????????# #??????????????? | | ??????????????????????????????# #??????????????? | | ??????????????????????????????# #??????????????? | | ??????????????????????????????# #??????????????? | | ?????????????????############## #??????????????? | | ????????????"" @ #??????????????? | | ??????????? T g m ##########??????????????? | | ??????????# !########+#????????????????????????? | | ?????????????????????????????????????????????????? | | ?????????????????????????????????????????????????? | | ?????????????????????????????????????????????????? | | ?????????????????????????????????????????????????? | | ?????????????????????????????????????????????????? | | ?????????????????????????????????????????????????? | | ?????????????????????????????????????????????????? | | ?????????????????????????????????????????????????? | | ?????????????????????????????????????????????????? | | | | | | | | | | | | | | | | | | | | | | | | | | | +----------------------------------------------------+ Best States ------------- Heat Dissipation 38 Energy Generation 14 Energy Capacity 250 Matter Stores 300 Matter Capacity 300 Sight Range 16 Robot Scan Range 10 Terrain Scan Density 10 Power Shielding 66 Evasion (%) 50 Targeting Accuracy 6 Recoil Reduction 3 Offensive Hacking 10 Item Schematics ----------------- None Robot Schematics ------------------ None Fabricated ------------ Nothing Alien Tech Used ----------------- None Achievements -------------- None Challenges ------------ None Game ------ Seed ExperimentalDimensionalSink Manual? 0 Play Time 00:21:41 Cumulative 47.2 hours Start 2019.10.28 @ 22:10:41 End 2019.10.28 @ 22:31:44 Sessions 1 Manual Loads 0 Difficulty Rogue Special Mode None Game No. 75 Rogue 75 Adventurer 0 Explorer 0 Win Type - Total 0 Types 0/0/0/0/0/0/0 Lore% 27 Gallery% 34 Achievement% 27 Wizard Run 0 Options --------- ASCII 0 Keyboard 0 Movement Mouse Keybinds 0 Fullscreen 1 Font 18/SmallcapsGlow Map View 76x50 Tactical HUD 1 Map Filters NONE Filters NONE Steam 1 RUN: 11ed8556-b17e-4a61-a553-514f25aa14f3